[Event "2nd FIDE WCC Rapid G12"]
[Site "Minsk"]
[Date "2018.06.23"]
[Round "5"]
[White "Dubovyk, Anastasiia"]
[Black "Petrova, Varvara"]
[Result "1-0"]
[ECO "C02"]
[WhiteElo "1721"]
[BlackElo "1500"]
[Annotator "NA"]
[PlyCount "137"]
[EventDate "2018.06.22"]
[EventType "rapid"]
[EventCountry "BLR"]
[SourceTitle "playchess.com"]
[Source "ChessBase"]
[SourceQuality "1"]
[TimeControl "600+5"]

1. e4 {[%emt 0:00:00]} e6 {[%emt 0:00:01]} 2. d4 {[%emt 0:00:00]} d5 {[%emt 0:00:01]} 3. e5 {[%emt 0:00:00]} c5 {[%emt 0:00:01]} 4. c3 {[%emt 0:00:00]} Qb6 {[%emt 0:00:01]} 5. Nf3 {[%emt 0:00:01]} Nc6 {[%emt 0:00:01]} 6. a3 {[%emt 0:00:01]} c4 {[%emt 0:00:03]} 7. Nbd2 {[%emt 0:00:07]} Na5 {[%emt 0:00:03]} 8. Be2 {[%emt 0:00:13]} Bd7 {[%emt 0:00:04]} 9. O-O {[%emt 0:00:12]} O-O-O {[%emt 0:00:12]} 10. Ng5 {[%emt 0:00:24]} Nh6 {[%emt 0:00:03]} 11. f4 {[%emt 0:00:21]} f6 {[%emt 0:00:09]} 12. Nh3 {[%emt 0:00:19]} Nf5 {[%emt 0:00:15]} 13. Nf3 {[%emt 0:00:10]} Nb3 {[%emt 0:00:27]} 14. Rb1 {[%emt 0:00:07]} Ba4 {[%emt 0:00:33]} 15. Qe1 {[%emt 0:00:19]} Qc6 {[%emt 0:00:24]} 16. g4 {[%emt 0:00:39]} Nxc1 {[%emt 0:00:57]} 17. Qxc1 {[%emt 0:00:15]} Ne7 {[%emt 0:00:19]} 18. Bd1 {[%emt 0:00:50]} f5 {[%emt 0:00:52]} 19. Nfg5 {[%emt 0:01:10]} Bxd1 {[%emt 0:01:21]} 20. Qxd1 {[%emt 0:00:07]} Re8 {[%emt 0:00:03]} 21. Nf7 {[%emt 0:00:10]} fxg4 {[%emt 0:01:23]} 22. Qxg4 {[%emt 0:01:22]} Nf5 {[%emt 0:00:59]} 23. Nxh8 {[%emt 0:00:09]} Nh6 {[%emt 0:01:37]} 24. Qh5 {[%emt 0:01:28]} g6 {[%emt 0:00:22]} 25. Nxg6 {[%emt 0:00:13]} hxg6 {[%emt 0:00:01]} 26. Qf3 {[%emt 0:00:42]} Nf5 {[%emt 0:00:31]} 27. Kf2 {[%emt 0:00:19]} Bh6 {[%emt 0:00:10]} 28. Ke2 {[%emt 0:00:38]} Qa4 {[%emt 0:00:14]} 29. Kd2 {[%emt 0:00:34]} Qa5 {[%emt 0:00:05]} 30. Qf2 {[%emt 0:00:27]} a6 {[%emt 0:00:17]} 31. Ng5 {[%emt 0:00:13]} Qc7 {[%emt 0:00:15]} 32. Rg1 {[%emt 0:00:15]} Qe7 {[%emt 0:00:06]} 33. h4 {[%emt 0:00:11]} Rh8 {[%emt 0:00:10]} 34. Rh1 {[%emt 0:00:02]} Bxg5 {[%emt 0:00:14]} 35. hxg5 {[%emt 0:00:05]} Rh5 {[%emt 0:00:04]} 36. Rxh5 {[%emt 0:00:03]} gxh5 {[%emt 0:00:01]} 37. Rh1 {[%emt 0:00:03]} h4 {[%emt 0:00:01]} 38. Rh3 {[%emt 0:00:02]} Qf7 {[%emt 0:00:03]} 39. Qf3 {[%emt 0:00:07]} Qg6 {[%emt 0:00:04]} 40. Qd1 {[%emt 0:00:08]} Ng3 {[%emt 0:00:10]} 41. Kc1 {[%emt 0:00:13]} Nf5 {[%emt 0:00:10]} 42. b3 {[%emt 0:00:05]} b5 {[%emt 0:00:07]} 43. bxc4 {[%emt 0:00:02]} dxc4 {[%emt 0:00:10]} 44. Qf3 {[%emt 0:00:07]} Kc7 {[%emt 0:00:09]} 45. Qa8 {[%emt 0:00:09]} Kb6 {[%emt 0:00:01]} 46. Qb8+ {[%emt 0:00:04]} Ka5 {[%emt 0:00:01]} 47. Qc7+ {[%emt 0:00:13]} Ka4 {[%emt 0:00:03]} 48. Qc5 {[%emt 0:00:05]} Ka5 {[%emt 0:00:04]} 49. a4 {[%emt 0:00:10]} Nxd4 {[%emt 0:00:30]} 50. Qxd4 {[%emt 0:00:19]} Kxa4 {[%emt 0:00:02]} 51. Qd1+ {[%emt 0:00:02]} Ka5 {[%emt 0:00:01]} 52. Rh2 {[%emt 0:00:09]} Qf5 {[%emt 0:00:06]} 53. Ra2+ {[%emt 0:00:01]} Kb6 {[%emt 0:00:01]} 54. Qd4+ {[%emt 0:00:02]} Kc7 {[%emt 0:00:05]} 55. Qd6+ {[%emt 0:00:01]} Kc8 {[%emt 0:00:03]} 56. Qxa6+ {[%emt 0:00:02]} Kd7 {[%emt 0:00:01]} 57. Qd6+ {[%emt 0:00:02]} Ke8 {[%emt 0:00:01]} 58. Ra8+ {[%emt 0:00:02]} Kf7 {[%emt 0:00:01]} 59. Rf8+ {[%emt 0:00:05]} Kg6 {[%emt 0:00:01]} 60. Rxf5 Kxf5 61. Qf8+ {[%emt 0:00:06]} Kg4 {[%emt 0:00:04]} 62. g6 {[%emt 0:00:02]} h3 {[%emt 0:00:01]} 63. g7 {[%emt 0:00:02]} h2 {[%emt 0:00:01]} 64. g8=Q+ {[%emt 0:00:03]} Kf3 {[%emt 0:00:01]} 65. Qa8+ {[%emt 0:00:05]} Kxf4 {[%emt 0:00:03]} 66. Qgg2 {[%emt 0:00:04]} Kxe5 {[%emt 0:00:02]} 67. Qxh2+ {[%emt 0:00:01]} Kf6 {[%emt 0:00:02]} 68. Qf8+ {[%emt 0:00:02]} Kg6 {[%emt 0:00:03]} 69. Qhh6# {[%emt 0:00:01]} 1-0

[Event "2nd FIDE WCC Rapid G12"]
[Site "Minsk"]
[Date "2018.06.23"]
[Round "5"]
[White "Nguyen, Hong Nhung"]
[Black "Osmolovska, Yevheniia"]
[Result "1-0"]
[ECO "B23"]
[WhiteElo "1518"]
[BlackElo "1391"]
[Annotator "NA"]
[PlyCount "125"]
[EventDate "2018.06.22"]
[EventType "rapid"]
[EventCountry "BLR"]
[SourceTitle "playchess.com"]
[Source "ChessBase"]
[SourceQuality "1"]
[TimeControl "600+5"]

1. e4 {[%emt 0:00:00]} c5 {[%emt 0:00:00]} 2. Nc3 {[%emt 0:00:00]} e6 {[%emt 0:00:05]} 3. g3 {[%emt 0:00:33]} g6 {[%emt 0:00:02]} 4. Bg2 {[%emt 0:00:03]} Bg7 {[%emt 0:00:01]} 5. d3 {[%emt 0:00:02]} Ne7 {[%emt 0:00:02]} 6. Be3 {[%emt 0:00:02]} d6 {[%emt 0:00:09]} 7. Nge2 {[%emt 0:00:03]} Nbc6 {[%emt 0:00:02]} 8. O-O {[%emt 0:00:04]} O-O {[%emt 0:00:03]} 9. Qd2 {[%emt 0:00:04]} Nd4 {[%emt 0:00:03]} 10. Nd1 {[%emt 0:00:04]} Rb8 {[%emt 0:00:36]} 11. c3 {[%emt 0:00:03]} Ndc6 {[%emt 0:00:01]} 12. d4 {[%emt 0:00:17]} c4 {[%emt 0:00:02]} 13. Bh6 {[%emt 0:00:34]} b5 {[%emt 0:00:01]} 14. Bxg7 {[%emt 0:00:04]} Kxg7 {[%emt 0:00:02]} 15. Ne3 {[%emt 0:00:23]} a5 {[%emt 0:00:03]} 16. f4 {[%emt 0:00:13]} Ba6 {[%emt 0:00:06]} 17. d5 {[%emt 0:00:08]} Na7 {[%emt 0:00:10]} 18. Qd4+ {[%emt 0:00:10]} e5 {[%emt 0:00:15]} 19. fxe5 {[%emt 0:00:13]} dxe5 {[%emt 0:00:01]} 20. Qxe5+ {[%emt 0:01:40]} Kg8 {[%emt 0:00:03]} 21. Ng4 {[%emt 0:00:10]} f6 {[%emt 0:00:13]} 22. Nxf6+ {[%emt 0:00:10]} Rxf6 {[%emt 0:00:02]} 23. Qxf6 {[%emt 0:00:09]} Bc8 {[%emt 0:00:05]} 24. Qf7+ {[%emt 0:00:16]} Kh8 {[%emt 0:00:02]} 25. d6 {[%emt 0:00:27]} Nec6 {[%emt 0:00:06]} 26. Qf8+ {[%emt 0:00:35]} Qxf8 {[%emt 0:00:02]} 27. Rxf8+ {[%emt 0:00:02]} Kg7 {[%emt 0:00:01]} 28. Rf2 {[%emt 0:00:15]} Ne5 {[%emt 0:00:14]} 29. Nf4 {[%emt 0:00:14]} Nac6 {[%emt 0:00:20]} 30. h3 {[%emt 0:00:26]} b4 {[%emt 0:00:18]} 31. Rd1 {[%emt 0:00:11]} a4 {[%emt 0:00:17]} 32. Nd5 {[%emt 0:00:34]} Nd3 {[%emt 0:01:02]} 33. Rfd2 {[%emt 0:00:34]} Nce5 {[%emt 0:00:05]} 34. Nxb4 {[%emt 0:00:42]} Bd7 {[%emt 0:00:25]} 35. Nxd3 {[%emt 0:00:24]} Nxd3 {[%emt 0:00:05]} 36. Bf1 {[%emt 0:00:16]} Ne5 {[%emt 0:00:05]} 37. Bg2 {[%emt 0:00:23]} Nd3 {[%emt 0:00:03]} 38. Re2 {[%emt 0:00:25]} Kf6 {[%emt 0:01:10]} 39. Bf1 {[%emt 0:00:56]} Ke6 {[%emt 0:01:56]} 40. e5 {[%emt 0:00:26]} Nxe5 {[%emt 0:00:27]} 41. Bg2 {[%emt 0:00:08]} Rb5 {[%emt 0:00:16]} 42. Rd4 {[%emt 0:00:09]} Kf6 {[%emt 0:00:15]} 43. Rf4+ {[%emt 0:00:02]} Kg7 {[%emt 0:00:02]} 44. Rfe4 {[%emt 0:00:04]} Nc6 {[%emt 0:00:12]} 45. Re7+ {[%emt 0:00:03]} Nxe7 {[%emt 0:00:02]} 46. Rxe7+ {[%emt 0:00:01]} Kf6 {[%emt 0:00:01]} 47. Rxd7 {[%emt 0:00:02]} Ke6 {[%emt 0:00:03]} 48. Rb7 {[%emt 0:00:05]} Rxb7 {[%emt 0:00:07]} 49. Bxb7 {[%emt 0:00:02]} Kxd6 {[%emt 0:00:02]} 50. Kf2 {[%emt 0:00:01]} Kc5 {[%emt 0:00:04]} 51. Ke3 {[%emt 0:00:01]} h6 {[%emt 0:00:06]} 52. Bc8 {[%emt 0:00:02]} g5 {[%emt 0:00:09]} 53. Ke4 {[%emt 0:00:03]} a3 {[%emt 0:00:04]} 54. bxa3 {[%emt 0:00:02]} Kb5 {[%emt 0:00:00]} 55. Bd7+ {[%emt 0:00:03]} Kc5 {[%emt 0:00:01]} 56. a4 {[%emt 0:00:03]} Kb6 {[%emt 0:00:05]} 57. Kd5 {[%emt 0:00:02]} Ka5 {[%emt 0:00:03]} 58. Kxc4 {[%emt 0:00:02]} h5 {[%emt 0:00:02]} 59. Kd5 {[%emt 0:00:03]} Ka6 {[%emt 0:00:02]} 60. c4 {[%emt 0:00:01]} Ka7 {[%emt 0:00:01]} 61. c5 {[%emt 0:00:01]} Ka8 {[%emt 0:00:01]} 62. c6 {[%emt 0:00:02]} Kb8 {[%emt 0:00:01]} 63. Kd6 {[%emt 0:00:01]} 1-0

[Event "2nd FIDE WCC Rapid G12"]
[Site "Minsk"]
[Date "2018.06.23"]
[Round "5"]
[White "Petrova, Elizaveta"]
[Black "Alekseenko, Mariya"]
[Result "0-1"]
[ECO "A43"]
[WhiteElo "1368"]
[BlackElo "1763"]
[Annotator "NA"]
[PlyCount "132"]
[EventDate "2018.06.22"]
[EventType "rapid"]
[EventCountry "BLR"]
[SourceTitle "playchess.com"]
[Source "ChessBase"]
[SourceQuality "1"]
[TimeControl "600+5"]

1. d4 {[%emt 0:00:00]} Nf6 {[%emt 0:00:01]} 2. Nf3 {[%emt 0:00:00]} c5 {[%emt 0:00:01]} 3. d5 {[%emt 0:00:00]} d6 {[%emt 0:00:03]} 4. g3 {[%emt 0:00:03]} e5 {[%emt 0:00:01]} 5. c4 {[%emt 0:00:10]} Nbd7 {[%emt 0:00:01]} 6. Nc3 {[%emt 0:00:02]} a6 {[%emt 0:00:02]} 7. e4 {[%emt 0:00:19]} g6 {[%emt 0:00:01]} 8. Bg2 {[%emt 0:00:01]} Bg7 {[%emt 0:00:01]} 9. O-O {[%emt 0:00:02]} O-O {[%emt 0:00:01]} 10. Ne1 {[%emt 0:00:37]} Ne8 {[%emt 0:00:06]} 11. Nc2 {[%emt 0:02:16]} h6 {[%emt 0:00:40]} 12. f4 {[%emt 0:00:23]} exf4 {[%emt 0:00:03]} 13. Bxf4 {[%emt 0:00:46]} Ne5 {[%emt 0:00:01]} 14. Bxe5 {[%emt 0:00:08]} Bxe5 {[%emt 0:00:02]} 15. Qd2 {[%emt 0:00:17]} Kh7 {[%emt 0:00:02]} 16. Rf2 {[%emt 0:01:02]} Qe7 {[%emt 0:00:15]} 17. Raf1 {[%emt 0:00:19]} Nf6 {[%emt 0:00:02]} 18. b3 {[%emt 0:01:53]} Ng4 {[%emt 0:00:15]} 19. Re2 {[%emt 0:00:01]} Bg7 {[%emt 0:00:11]} 20. h3 {[%emt 0:00:03]} Ne5 {[%emt 0:00:01]} 21. Na4 {[%emt 0:00:47]} Qc7 {[%emt 0:00:34]} 22. Ne3 {[%emt 0:00:19]} b5 {[%emt 0:00:06]} 23. Nb2 {[%emt 0:00:13]} Qe7 {[%emt 0:00:58]} 24. Nd3 {[%emt 0:00:22]} Nxd3 {[%emt 0:00:05]} 25. Qxd3 {[%emt 0:00:01]} Be5 {[%emt 0:00:01]} 26. Nc2 {[%emt 0:00:44]} Bd7 {[%emt 0:00:07]} 27. Ref2 {[%emt 0:00:21]} f5 {[%emt 0:01:10]} 28. exf5 {[%emt 0:00:31]} Bxf5 {[%emt 0:00:02]} 29. Be4 {[%emt 0:00:05]} bxc4 {[%emt 0:00:57]} 30. bxc4 {[%emt 0:00:02]} Bxe4 {[%emt 0:00:17]} 31. Qxe4 {[%emt 0:00:02]} Rxf2 {[%emt 0:00:01]} 32. Rxf2 {[%emt 0:00:02]} Rf8 {[%emt 0:00:02]} 33. Qg2 {[%emt 0:00:10]} Kg7 {[%emt 0:00:48]} 34. Rxf8 {[%emt 0:00:02]} Qxf8 {[%emt 0:00:01]} 35. Qf2 {[%emt 0:00:17]} Qb8 {[%emt 0:00:22]} 36. Kg2 {[%emt 0:00:18]} a5 {[%emt 0:00:16]} 37. g4 {[%emt 0:00:07]} Qb1 {[%emt 0:00:10]} 38. Ne3 {[%emt 0:00:15]} Bd4 {[%emt 0:00:18]} 39. Qe2 {[%emt 0:00:02]} Qe4+ {[%emt 0:00:02]} 40. Kf2 {[%emt 0:00:01]} Qf4+ {[%emt 0:00:20]} 41. Qf3 {[%emt 0:00:03]} Bxe3+ {[%emt 0:00:02]} 42. Ke2 {[%emt 0:00:06]} Qxf3+ {[%emt 0:00:01]} 43. Kxf3 {[%emt 0:00:01]} Bd4 {[%emt 0:00:01]} 44. Ke4 {[%emt 0:00:02]} Kf6 {[%emt 0:00:01]} 45. Kf4 {[%emt 0:00:02]} Be5+ {[%emt 0:00:04]} 46. Ke4 {[%emt 0:00:01]} Kg5 {[%emt 0:00:01]} 47. Kf3 {[%emt 0:00:04]} Kh4 {[%emt 0:00:02]} 48. Kg2 {[%emt 0:00:00]} a4 {[%emt 0:00:05]} 49. g5 {[%emt 0:00:05]} Kxg5 {[%emt 0:00:02]} 50. Kf3 {[%emt 0:00:01]} Kh4 {[%emt 0:00:02]} 51. Kg2 {[%emt 0:00:02]} g5 {[%emt 0:00:04]} 52. Kf3 {[%emt 0:00:01]} Kxh3 {[%emt 0:00:01]} 53. Ke2 {[%emt 0:00:02]} g4 {[%emt 0:00:01]} 54. Kd3 {[%emt 0:00:00]} a3 {[%emt 0:00:02]} 55. Kc2 {[%emt 0:00:01]} g3 {[%emt 0:00:02]} 56. Kb3 {[%emt 0:00:01]} Bb2 {[%emt 0:00:01]} 57. Kc2 {[%emt 0:00:01]} g2 {[%emt 0:00:01]} 58. Kd3 {[%emt 0:00:02]} g1=Q {[%emt 0:00:02]} 59. Ke4 {[%emt 0:00:01]} Qg4+ {[%emt 0:00:03]} 60. Ke3 {[%emt 0:00:01]} Bc1+ {[%emt 0:00:03]} 61. Kd3 {[%emt 0:00:01]} Qd4+ {[%emt 0:00:19]} 62. Ke2 {[%emt 0:00:01]} Qe3+ {[%emt 0:00:01]} 63. Kf1 {[%emt 0:00:01]} Qd3+ {[%emt 0:00:16]} 64. Kf2 {[%emt 0:00:05]} Be3+ {[%emt 0:00:02]} 65. Ke1 {[%emt 0:00:02]} Qd2+ {[%emt 0:00:02]} 66. Kf1 {[%emt 0:00:00]} Qf2# {[%emt 0:00:00]} 0-1

[Event "2nd FIDE WCC Rapid G12"]
[Site "Minsk"]
[Date "2018.06.23"]
[Round "6"]
[White "Zavivaeva, Emilia"]
[Black "Nguyen, Hong Nhung"]
[Result "0-1"]
[ECO "B40"]
[WhiteElo "1556"]
[BlackElo "1518"]
[Annotator "NA"]
[PlyCount "43"]
[EventDate "2018.06.22"]
[EventType "rapid"]
[EventCountry "BLR"]
[SourceTitle "playchess.com"]
[Source "ChessBase"]
[SourceQuality "1"]
[TimeControl "600+5"]

1. e4 {[%emt 0:00:00]} c5 {[%emt 0:00:01]} 2. Nf3 {[%emt 0:00:03]} e6 {[%emt 0:00:02]} 3. d4 {[%emt 0:00:02]} cxd4 {[%emt 0:00:02]} 4. Nxd4 {[%emt 0:00:01]} Nf6 {[%emt 0:00:02]} 5. Nc3 {[%emt 0:00:14]} Nc6 {[%emt 0:00:02]} 6. Be3 {[%emt 0:00:47]} Bb4 {[%emt 0:00:06]} 7. Nxc6 {[%emt 0:00:37]} bxc6 {[%emt 0:00:03]} 8. Bd3 {[%emt 0:00:04]} d5 {[%emt 0:00:23]} 9. exd5 {[%emt 0:01:27]} cxd5 {[%emt 0:00:03]} 10. O-O {[%emt 0:01:05]} O-O {[%emt 0:00:03]} 11. Ne2 {[%emt 0:00:47]} Bb7 {[%emt 0:00:12]} 12. c3 {[%emt 0:00:03]} Bd6 {[%emt 0:00:08]} 13. Qc2 {[%emt 0:01:58]} h6 {[%emt 0:00:38]} 14. Nd4 {[%emt 0:00:32]} Ng4 {[%emt 0:01:04]} 15. Qe2 {[%emt 0:02:17]} Bxh2+ {[%emt 0:01:28]} 16. Kh1 {[%emt 0:00:12]} Qh4 {[%emt 0:00:03]} 17. Nf3 {[%emt 0:00:50]} Qh5 {[%emt 0:00:01]} 18. Rfd1 {[%emt 0:00:11]} e5 {[%emt 0:01:06]} 19. Bc2 {[%emt 0:00:19]} e4 {[%emt 0:00:04]} 20. Rxd5 Bxd5 {[%emt 0:00:03]} 21. Qd2 {[%emt 0:00:10]} exf3 {[%emt 0:00:07]} 22. g3 0-1

[Event "2nd FIDE WCC Rapid G12"]
[Site "Minsk"]
[Date "2018.06.23"]
[Round "6"]
[White "Starosta, Martyna"]
[Black "Kastanieda, Alla"]
[Result "1-0"]
[ECO "C11"]
[WhiteElo "1537"]
[BlackElo "1379"]
[Annotator "NA"]
[PlyCount "53"]
[EventDate "2018.06.22"]
[EventType "rapid"]
[EventCountry "BLR"]
[SourceTitle "playchess.com"]
[Source "ChessBase"]
[SourceQuality "1"]
[TimeControl "600+5"]

1. e4 {[%emt 0:00:00]} e6 {[%emt 0:00:01]} 2. d4 {[%emt 0:00:00]} d5 {[%emt 0:00:01]} 3. Nc3 {[%emt 0:00:00]} Nf6 {[%emt 0:00:01]} 4. e5 {[%emt 0:00:01]} Nfd7 {[%emt 0:00:02]} 5. f4 {[%emt 0:00:01]} c5 {[%emt 0:00:01]} 6. Nf3 {[%emt 0:00:02]} cxd4 {[%emt 0:00:08]} 7. Nxd4 {[%emt 0:00:04]} Nc6 {[%emt 0:00:06]} 8. Be3 {[%emt 0:00:01]} Bc5 {[%emt 0:00:50]} 9. Qd2 {[%emt 0:01:09]} a6 {[%emt 0:01:10]} 10. O-O-O {[%emt 0:00:32]} Bxd4 {[%emt 0:00:43]} 11. Bxd4 {[%emt 0:00:02]} b5 {[%emt 0:00:01]} 12. Qf2 {[%emt 0:00:57]} Qa5 {[%emt 0:00:29]} 13. Kb1 {[%emt 0:00:28]} Bb7 {[%emt 0:00:44]} 14. Bd3 {[%emt 0:00:34]} Qb4 {[%emt 0:00:37]} 15. Ne2 {[%emt 0:00:48]} Nxd4 {[%emt 0:00:57]} 16. Qxd4 {[%emt 0:00:10]} Qxd4 {[%emt 0:00:14]} 17. Nxd4 {[%emt 0:00:02]} Nc5 {[%emt 0:00:05]} 18. Rhf1 {[%emt 0:00:35]} Nxd3 {[%emt 0:00:53]} 19. Rxd3 {[%emt 0:00:02]} g6 {[%emt 0:00:34]} 20. g4 {[%emt 0:00:23]} Rg8 {[%emt 0:01:19]} 21. f5 {[%emt 0:00:30]} gxf5 {[%emt 0:00:02]} 22. gxf5 {[%emt 0:00:03]} Ke7 {[%emt 0:00:07]} 23. fxe6 {[%emt 0:00:40]} fxe6 {[%emt 0:00:01]} 24. Rdf3 {[%emt 0:00:16]} Bc8 {[%emt 0:01:37]} 25. Rf7+ {[%emt 0:00:20]} Ke8 {[%emt 0:00:08]} 26. Nc6 {[%emt 0:00:16]} Bd7 {[%emt 0:00:21]} 27. Re7# {[%emt 0:00:02]} 1-0

[Event "2nd FIDE WCC Rapid G12"]
[Site "Minsk"]
[Date "2018.06.23"]
[Round "6"]
[White "Dubovik, Maria"]
[Black "Shaban, Aliaksandra"]
[Result "0-1"]
[ECO "B03"]
[WhiteElo "1408"]
[BlackElo "1425"]
[Annotator "NA"]
[PlyCount "81"]
[EventDate "2018.06.22"]
[EventType "rapid"]
[EventCountry "BLR"]
[SourceTitle "playchess.com"]
[Source "ChessBase"]
[SourceQuality "1"]
[TimeControl "600+5"]

1. e4 {[%emt 0:00:00]} Nf6 {[%emt 0:00:00]} 2. e5 {[%emt 0:00:00]} Nd5 {[%emt 0:00:01]} 3. d4 d6 4. exd6 {[%emt 0:00:00]} cxd6 {[%emt 0:00:00]} 5. c4 {[%emt 0:00:01]} Nb6 {[%emt 0:00:01]} 6. a4 {[%emt 0:00:02]} a5 {[%emt 0:00:06]} 7. b3 g6 {[%emt 0:00:01]} 8. Bb2 {[%emt 0:00:05]} Bg7 {[%emt 0:00:01]} 9. Nf3 {[%emt 0:00:24]} O-O {[%emt 0:00:02]} 10. Be2 {[%emt 0:00:02]} Bg4 {[%emt 0:00:05]} 11. O-O Nc6 12. h3 {[%emt 0:00:03]} Bxf3 {[%emt 0:00:06]} 13. Bxf3 d5 14. c5 {[%emt 0:00:07]} Nc8 {[%emt 0:00:02]} 15. Na3 {[%emt 0:00:22]} b6 {[%emt 0:00:46]} 16. cxb6 {[%emt 0:00:22]} Nxb6 {[%emt 0:00:01]} 17. Nb5 {[%emt 0:00:04]} Rb8 {[%emt 0:00:32]} 18. Rc1 {[%emt 0:00:10]} Qd7 {[%emt 0:00:08]} 19. Qd2 {[%emt 0:01:02]} Nc8 {[%emt 0:00:58]} 20. Rfd1 {[%emt 0:00:47]} N8a7 {[%emt 0:00:36]} 21. Nxa7 {[%emt 0:00:14]} Nxa7 {[%emt 0:00:01]} 22. Qxa5 {[%emt 0:00:03]} Rxb3 {[%emt 0:00:37]} 23. Ba1 {[%emt 0:00:15]} Ra3 {[%emt 0:01:22]} 24. Qxd5 {[%emt 0:00:59]} Qxd5 {[%emt 0:00:35]} 25. Bxd5 {[%emt 0:00:03]} Rxa4 {[%emt 0:00:02]} 26. Bf3 {[%emt 0:01:19]} Rd8 {[%emt 0:00:12]} 27. d5 {[%emt 0:00:14]} Bh6 {[%emt 0:00:13]} 28. Rc7 {[%emt 0:00:29]} Nc8 {[%emt 0:00:22]} 29. Bc3 {[%emt 0:00:33]} Bf4 {[%emt 0:00:14]} 30. Rb7 {[%emt 0:01:08]} Bd6 {[%emt 0:00:51]} 31. Bg4 {[%emt 0:00:50]} f5 {[%emt 0:01:03]} 32. Bf3 {[%emt 0:00:21]} Ra3 {[%emt 0:00:33]} 33. Bb2 {[%emt 0:00:26]} Ra4 {[%emt 0:00:28]} 34. g4 {[%emt 0:00:24]} Rf4 {[%emt 0:01:12]} 35. Kg2 {[%emt 0:00:32]} h6 {[%emt 0:00:45]} 36. gxf5 {[%emt 0:00:05]} gxf5 {[%emt 0:00:02]} 37. Rg1 {[%emt 0:00:50]} Kh7 {[%emt 0:00:05]} 38. Rc1 {[%emt 0:00:03]} Rg8+ {[%emt 0:00:07]} 39. Kh1 {[%emt 0:00:09]} Rxf3 {[%emt 0:00:09]} 40. Rc3 {[%emt 0:00:30]} Re3 41. fxe3 0-1

[Event "2nd FIDE WCC Rapid G12"]
[Site "Minsk"]
[Date "2018.06.23"]
[Round "6"]
[White "Nguyen, Linh Dan"]
[Black "Gaal, Zsoka"]
[Result "0-1"]
[ECO "B32"]
[WhiteElo "1325"]
[BlackElo "2060"]
[Annotator "NA RC"]
[PlyCount "138"]
[EventDate "2018.06.22"]
[EventType "rapid"]
[EventCountry "BLR"]
[SourceTitle "playchess.com"]
[Source "ChessBase"]
[SourceQuality "1"]
[TimeControl "600+5"]

1. e4 {[%emt 0:00:00]} c5 {[%emt 0:00:00]} 2. Nf3 {[%emt 0:00:00]} Nc6 {[%emt 0:00:01]} 3. d4 {[%emt 0:00:00]} cxd4 {[%emt 0:00:01]} 4. Nxd4 {[%emt 0:00:01]} g6 {[%emt 0:00:01]} 5. Be3 {[%emt 0:00:06]} Bg7 {[%emt 0:00:01]} 6. g3 {[%emt 0:00:02]} Nf6 {[%emt 0:00:32] LiveBook: 3 Games} 7. Bg2 {[%emt 0:00:09]} O-O {[%emt 0:00:18] B34: Sicilian: Accelerated Dragon with 5 Nc3: sidelines} (7... Ng4 8. Qxg4 Nxd4 9. Na3 O-O 10. c3 d6 11. Qd1 Nc6 12. f4 Be6 13. O-O Qc8 14. Rf2 Bh3 15. Bh1 Rb8 16. Qd3 Qd7 17. Nb5 a6 18. Nd4 Nxd4 19. Bxd4 e5 20. Be3 exf4 21. Bxf4 Be5 22. Bg2 {½-½ (22) Kopecky,P (2252)-Havlikova,K (2285) Czechia 2011}) 8. O-O {[%emt 0:00:12]} Rb8 {[%emt 0:01:22]} 9. Nc3 {[%emt 0:00:19]} d6 {[%emt 0:00:49]} 10. Rb1 $146 {[%emt 0:00:21]} ({Predecessor:} 10. Qd2 Ng4 11. Nce2 Nxe3 12. Qxe3 Qb6 13. c3 Nxd4 14. Nxd4 Qxb2 15. Rfb1 Qa3 16. Nc6 Qxc3 17. Nxe7+ {0-1 (57) Binder,M-Schreiner,P Aigen 2004}) 10... Ng4 {[%emt 0:00:28]} 11. Nxc6 {[%emt 0:00:10]} bxc6 {[%emt 0:00:02]} 12. Bxa7 {[%emt 0:00:17]} Ra8 {[%emt 0:00:21]} 13. Bd4 {[%emt 0:00:02]} e5 {[%emt 0:00:38]} 14. Be3 {[%emt 0:00:01]} Nxe3 {[%emt 0:00:12]} 15. fxe3 {[%emt 0:00:01]} Ba6 {[%emt 0:01:19]} 16. Re1 {[%emt 0:00:10]} Qc7 {[%emt 0:01:24]} 17. Qf3 {[%emt 0:01:09]} Rab8 {[%emt 0:00:16]} 18. g4 {[%emt 0:01:11]} Rb7 {[%emt 0:00:38]} 19. Bf1 {[%emt 0:00:39]} Bxf1 {[%emt 0:00:14]} 20. Rxf1 {[%emt 0:00:03]} Rfb8 {[%emt 0:00:10]} 21. b3 {[%emt 0:00:28]} Qa5 {[%emt 0:00:27]} 22. Na4 {[%emt 0:01:52]} Qc7 {[%emt 0:00:55]} 23. Rbd1 {[%emt 0:00:15]} Rd8 {[%emt 0:00:22]} 24. c4 {[%emt 0:00:19]} c5 {[%emt 0:00:48]} (24... Qe7 $14) 25. Rd5 {[%emt 0:00:41]} Qe7 {[%emt 0:00:23]} 26. Rfd1 {[%emt 0:00:41]} Rbd7 {[%emt 0:00:02]} 27. Nc3 {[%emt 0:00:08]} Qg5 {[%emt 0:00:18]} 28. Qg3 {[%emt 0:00:38]} Bh6 {[%emt 0:00:07]} 29. R1d3 {[%emt 0:00:08]} Qe7 {[%emt 0:00:06]} 30. Nb5 {[%emt 0:00:09]} Ra8 {[%emt 0:00:06]} 31. a4 {[%emt 0:00:10]} Ra6 {[%emt 0:00:06]} 32. h4 {[%emt 0:00:35]} Bg7 {[%emt 0:00:02]} 33. Rd1 {[%emt 0:00:11]} h6 {[%emt 0:00:04]} 34. Nc3 {[%emt 0:00:17]} Bf6 {[%emt 0:00:01]} 35. Nb5 {[%emt 0:00:29]} Bxh4 {[%emt 0:00:06]} 36. Qh3 {[%emt 0:00:01]} Qf6 {[%emt 0:00:13]} 37. Qf1 {[%emt 0:00:20]} Qg5 {[%emt 0:00:04]} 38. Qf3 {[%emt 0:00:02]} h5 {[%emt 0:00:03]} 39. Rxd6 {[%emt 0:00:13]} hxg4 {[%emt 0:00:01]} 40. Qe2 {[%emt 0:00:09]} Rdxd6 {[%emt 0:00:05]} 41. Nxd6 {[%emt 0:00:15]} g3 {[%emt 0:00:08]} 42. Qf3 {[%emt 0:00:14]} Qe7 {[%emt 0:00:05]} 43. Nb5 {[%emt 0:00:06]} Ra8 {[%emt 0:00:07]} 44. Nc3 {[%emt 0:00:02]} Qe6 {[%emt 0:00:02]} 45. Nd5 {[%emt 0:00:07]} Qh3 {[%emt 0:00:04]} 46. Qg2 {[%emt 0:00:09]} Qxg2+ 47. Kxg2 {[%emt 0:00:01]} Rb8 {[%emt 0:00:05]} 48. Rd3 {[%emt 0:00:02]} f5 {[%emt 0:00:04] [#]} 49. exf5 {[%emt 0:00:05]} (49. Rd2 $1 $16) 49... gxf5 50. Kh3 $11 e4 {[%emt 0:00:20]} 51. Rd1 {[%emt 0:00:05]} Bg5 {[%emt 0:00:04]} 52. Kxg3 {[%emt 0:00:01]} Rxb3 {[%emt 0:00:01]} 53. Kf2 {[%emt 0:00:04]} Ra3 54. Rg1 {[%emt 0:00:02]} Ra2+ {[%emt 0:00:04]} 55. Kg3 {[%emt 0:00:06]} Kf7 {[%emt 0:00:02]} 56. Kh3 {[%emt 0:00:04]} Bd8 {[%emt 0:00:08]} 57. Rf1 {[%emt 0:00:01]} Ke6 {[%emt 0:00:06]} 58. Nf4+ {[%emt 0:00:04]} Kd7 {[%emt 0:00:08]} 59. Ng6 {[%emt 0:00:07]} Rxa4 {[%emt 0:00:03]} 60. Rxf5 {[%emt 0:00:01]} Rxc4 {[%emt 0:00:01]} 61. Rd5+ {[%emt 0:00:11]} Kc8 {[%emt 0:00:09]} 62. Ne5 {[%emt 0:00:02]} Rc3 {[%emt 0:00:02]} 63. Nf7 {[%emt 0:00:08]} Bb6 {[%emt 0:00:08]} 64. Nd6+ {[%emt 0:00:03]} Kb8 {[%emt 0:00:04]} 65. Kg4 {[%emt 0:00:26]} c4 {[%emt 0:00:17]} 66. Nxe4 {[%emt 0:00:03]} Rxe3 {[%emt 0:00:02]} 67. Kf4 {[%emt 0:00:04]} c3 {[%emt 0:00:03]} 68. Rb5 {[%emt 0:00:04]} c2 {[%emt 0:00:08]} 69. Rxb6+ {[%emt 0:00:14]} Kc7 {[%emt 0:00:01]} 0-1